bitfinex/quotes_ETHUSD_20250923
["timestamp","ask_amount","ask_price","bid_price","bid_amount"]
[1758597720468,8.52469458,4165.1,4165.0,0.7014]
[1758597720672,2.21169458,4165.1,4165.0,0.7014]
[1758597720823,9.58170783,4165.1,4165.0,0.7014]
[1758597721028,10.43924862,4165.1,4165.0,0.004]
[1758597721224,9.58301555,4165.1,4165.0,0.004]
[1758597721428,10.60471555,4165.1,4165.0,0.004]
[1758597721675,2.40119099,4164.6,4164.5,0.004]
[1758597721883,8.79632821,4164.6,4164.5,0.004]
[1758597722374,7.50630381,4164.6,4164.5,0.004]
[1758597722927,9.58330381,4164.6,4164.5,0.004]
[1758597723473,9.58684615,4164.6,4164.5,0.004]
[1758597723638,10.97521482,4164.6,4164.5,0.004]
[1758597723837,11.20491482,4164.6,4164.5,0.004]
[1758597724376,2.40142164,4164.2,4164.1,1.0]
[1758597724527,8.80179898,4164.2,4164.1,1.0]
[1758597724725,0.12,4164.1,4164.0,1.0]
[1758597724946,2.12596642,4164.1,4164.0,1.6974]
[1758597725631,0.87365516,4164.1,4164.0,1.6974]
[1758597725926,5.97006678,4164.1,4164.0,1.6974]
[1758597726123,0.87365516,4164.1,4164.0,4.09893698]
[1758597726573,0.3571294,4164.1,4164.0,4.21893698]
[1758597726725,0.13343313,4164.1,4164.0,4.21893698]
[1758597727361,0.12,4165.2,4164.7,3.40113333]
[1758597727362,0.6462538,4165.0,4164.7,3.40113333]
[1758597727568,0.6462538,4165.0,4164.9,2.40101803]
[1758597727740,0.87065989,4165.0,4164.9,2.40101803]
[1758597727929,0.87065989,4165.0,4164.9,3.09841803]
[1758597728265,0.22440609,4165.0,4164.9,3.09841803]
[1758597728466,0.22440609,4165.0,4164.9,3.12242821]
[1758597728633,0.22440609,4165.0,4164.9,3.24242821]
[1758597729036,0.001,4165.5,4165.4,3.40072982]
[1758597729235,0.22534891,4165.5,4165.4,3.42473711]
[1758597729495,0.22534891,4165.5,4165.4,4.24213711]
[1758597729844,0.001,4165.5,4165.4,4.24213711]
[1758597730725,0.001,4165.5,4165.4,4.21812982]
[1758597731854,0.001,4165.5,4165.4,4.24213711]
[1758597732641,0.001,4165.5,4165.4,4.21812982]
[1758597733576,0.001,4165.5,4165.4,4.24213711]
[1758597735043,0.001,4165.5,4165.4,7.24213711]
[1758597735344,0.001,4165.5,4165.4,7.21812982]
[1758597736099,0.001,4165.5,4165.4,8.01012982]
[1758597736258,0.001,4166.0,4165.9,7.19244168]
[1758597736457,0.001,4166.0,4165.9,13.49944168]
[1758597736667,0.001,4166.0,4165.9,14.17144168]
[1758597736955,0.22334259,4168.2,4168.1,3.39917468]
[1758597737169,0.22334259,4168.5,4168.1,3.39917468]
[1758597737369,0.22334259,4168.5,4168.3,2.39903206]
[1758597737575,0.22334259,4168.5,4168.4,2.39895015]
[1758597737761,0.22334259,4168.8,4168.5,2.39889446]
[1758597738083,0.46244259,4168.8,4168.4,3.39899505]
[1758597738288,0.46244259,4168.8,4168.4,1.0]
[1758597738449,0.46244259,4168.8,4168.2,0.2368]
[1758597738450,0.30972869,4168.9,4168.7,3.39882937]
[1758597738655,0.30972869,4168.9,4168.8,2.42275953]
[1758597738967,0.30972869,4168.9,4168.8,2.65955953]
[1758597739351,0.30972869,4168.9,4168.8,3.07077182]
[1758597739771,0.30972869,4168.9,4168.8,6.86457182]
[1758597740287,0.30972869,4168.9,4168.8,3.07077182]
[1758597740454,0.30972869,4168.9,4168.8,7.29977182]
[1758597741785,0.30972869,4168.9,4168.8,6.62777182]
[1758597742115,0.54882869,4168.9,4168.7,1.0]
[1758597742313,0.2391,4168.8,4168.7,1.0]
[1758597742679,0.2391,4168.8,4168.3,2.925]
[1758597742880,0.2391,4168.8,4168.7,1.0]
[1758597743212,0.30972869,4168.9,4168.7,1.0]
[1758597743411,0.2391,4168.8,4168.7,1.0]
[1758597743580,2.39883588,4168.7,4168.1,4.227]
[1758597743904,0.34045646,4168.6,4168.1,4.227]
[1758597744071,0.696,4168.5,4168.1,1.0]
[1758597744271,2.39905956,4168.3,4168.1,1.0]
[1758597744532,0.696,4168.2,4166.9,0.2368]
[1758597744692,2.39922128,4168.1,4167.0,2.39979977]
[1758597744895,0.2391,4168.2,4168.0,1.0]
[1758597745408,0.2391,4168.1,4168.0,1.0]
[1758597745983,4.227,4168.4,4168.0,1.0]
[1758597746178,0.1192,4168.1,4168.0,1.0]
[1758597746384,2.51837468,4168.1,4168.0,1.0]
[1758597746682,1.79923853,4168.1,4167.8,1.0]
[1758597746883,1.68003853,4168.1,4167.8,1.0]
[1758597747511,0.98403853,4168.1,4167.8,1.0]
[1758597747813,2.39905956,4168.3,4168.2,1.0]
[1758597747978,0.696,4168.3,4168.2,1.0]
[1758597748330,0.696,4168.3,4167.3,3.519]
[1758597748331,0.1192,4168.2,4167.9,1.0]
[1758597748535,0.696,4168.3,4168.2,1.0]
[1758597748735,0.93958968,4168.3,4168.2,1.0]
[1758597748904,4.4651,4168.7,4168.2,1.0]
[1758597749100,2.3989009,4168.6,4168.2,1.0]
[1758597749304,0.2391,4168.3,4168.2,1.0]
[1758597749532,0.2391,4168.5,4168.2,1.0]
[1758597749711,0.30972869,4168.9,4168.2,1.0]
[1758597749913,0.58057211,4168.9,4168.6,1.0]
[1758597750105,0.1192,4168.7,4168.6,1.0]
[1758597750514,0.1192,4168.7,4168.6,3.39888691]
[1758597750920,0.1192,4168.7,4168.6,1.0]
[1758597751806,0.1192,4168.7,4168.6,3.39888691]
[1758597752006,0.1192,4168.7,4168.6,1.0]
[1758597752613,0.1192,4168.7,4168.6,3.39888691]
[1758597753530,0.1202,4168.7,4168.6,3.39888691]
[1758597753929,0.1202,4168.7,4168.6,1.0]
[1758597754748,0.3593,4168.7,4168.6,1.0]
[1758597755048,0.1202,4168.7,4168.6,1.0]
[1758597755344,0.001,4168.7,4168.6,3.39888691]
[1758597755546,0.001,4168.7,4168.6,3.63568691]
[1758597755862,0.001,4168.7,4168.6,4.19008691]
[1758597757432,1e-08,4168.9,4168.6,4.7912]
[1758597757630,1e-08,4168.9,4168.8,2.39877182]
[1758597758032,1e-08,4168.9,4168.8,6.07077182]
[1758597759461,1e-08,4168.9,4168.8,12.36777182]
[1758597760174,1e-08,4168.9,4168.8,6.07077182]
[1758597760522,1e-08,4168.9,4168.8,12.36777182]
[1758597761255,1e-08,4168.9,4168.8,11.93257182]
[1758597761454,1e-08,4168.9,4168.8,7.61977182]
[1758597761761,1e-08,4168.9,4168.8,6.61977182]
[1758597762055,1e-08,4168.9,4168.8,3.39877182]
[1758597762222,1e-08,4168.9,4168.8,6.61977182]
[1758597762640,1e-08,4168.9,4168.8,7.61977182]
[1758597762842,1e-08,4168.9,4168.7,2.39878403]
[1758597763061,0.23910001,4168.9,4168.8,4.22]
[1758597763259,0.59660086,4168.9,4168.7,2.39878403]
[1758597763477,0.13405721,4168.8,4168.7,6.61878403]
[1758597763673,1.11154332,4168.8,4168.7,1.0]
[1758597763862,0.87244332,4168.8,4168.7,7.09082937]
[1758597764170,0.87244332,4168.8,4168.7,4.692]
[1758597765156,0.87244332,4168.8,4168.7,3.692]
[1758597765473,0.87292322,4168.8,4168.7,1.0]
[1758597765845,0.87292322,4168.8,4168.2,0.2368]
[1758597766046,0.87292322,4168.7,4168.6,1.0]
[1758597766241,0.87292322,4168.7,4168.6,3.39888691]
[1758597766776,1.73502363,4168.7,4167.7,2.39940494]
[1758597766943,0.64478773,4168.5,4168.4,1.0]
[1758597767144,1.11352322,4168.5,4168.4,1.0]
[1758597767675,0.87292322,4168.5,4168.4,3.39900201]
[1758597767882,0.87292322,4168.5,4168.4,1.0]
[1758597768085,1.58372322,4168.5,4167.9,6.73743849]
[1758597768242,0.98610923,4168.4,4167.6,0.1192]
[1758597768444,0.64488653,4168.0,4167.5,1.453]
[1758597768682,0.64488653,4168.0,4167.6,2.39945968]
[1758597768683,0.1192,4167.8,4167.6,2.39945968]
[1758597768994,0.1192,4167.8,4167.6,3.39945968]
[1758597768995,0.87419353,4167.7,4167.6,3.39945968]
[1758597769140,0.87419353,4167.7,4167.6,1.0]
[1758597769604,0.87419353,4167.7,4167.6,3.39946252]
[1758597769744,0.87419353,4167.7,4167.6,1.0]
[1758597770453,1.11479353,4167.7,4167.6,1.0]
[1758597770660,0.87419353,4167.7,4167.6,3.39946252]
[1758597771359,1.75968006,4167.7,4167.6,1.0]
[1758597771555,1.11479353,4167.7,4167.6,1.0]
[1758597771876,1.37135405,4167.7,4167.1,0.1192]
[1758597772081,0.86141162,4167.4,4166.5,2.40008671]
[1758597772392,0.64487154,4167.2,4166.7,2.39992677]
[1758597772561,0.64487154,4167.2,4167.1,1.0]
[1758597772767,2.38002028,4167.2,4166.5,2.40009136]
[1758597772964,0.87372042,4167.1,4167.0,1.0]
[1758597773380,0.87372042,4167.1,4167.0,3.39980801]
[1758597773766,0.87372042,4167.1,4167.0,1.0]
[1758597774166,0.87372042,4167.1,4167.0,3.39980801]
[1758597774791,0.87372042,4167.1,4167.0,1.0]
[1758597775001,0.87372042,4167.1,4167.0,3.39980801]
[1758597776367,0.87372042,4167.1,4167.0,1.0]
[1758597776590,0.87372042,4167.1,4167.0,3.39980801]
[1758597776803,0.13428687,4167.1,4167.0,4.09240801]
[1758597776976,0.64487154,4168.1,4167.7,3.39940494]
[1758597777181,1.11359642,4168.0,4167.7,3.39940494]
[1758597777380,0.87299642,4167.9,4167.7,3.39940494]
[1758597777687,0.87299642,4167.8,4167.7,3.39940494]
[1758597777890,0.87299642,4167.8,4167.7,1.0]
[1758597778408,0.87299642,4167.8,4167.7,3.39940494]
[1758597779380,0.35778094,4167.8,4167.7,3.39940494]
[1758597779620,0.13416785,4167.8,4167.7,3.39940494]
[1758597779802,0.13416785,4167.8,4167.7,1.0]
[1758597779999,1.58379642,4167.8,4167.7,1.0]
[1758597780198,1.58379642,4167.8,4166.3,2.40019065]
[1758597780199,2.3870476,4167.8,4166.2,0.2385]
[1758597780481,1.51786796,4167.7,4167.6,1.0]
[1758597780702,2.22866796,4167.7,4166.2,0.2385]
[1758597780904,2.39981513,4167.0,4166.1,2.40027112]
[1758597781107,1.58379642,4166.9,4165.5,0.2425]
[1758597781283,1.09586322,4166.8,4165.5,0.2425]
[1758597781496,2.40004251,4166.6,4165.8,2.40048943]
[1758597781816,0.35778094,4166.5,4166.2,1.0]
[1758597782001,1.58379642,4166.4,4166.2,1.0]
[1758597782327,0.13416785,4166.3,4166.2,1.0]
[1758597782480,0.2406,4166.3,4165.6,0.2385]
[1758597782680,0.35755973,4166.6,4166.2,1.0]
[1758597782681,0.13416785,4166.5,4166.2,1.0]
[1758597782882,0.13416785,4166.6,4166.5,1.0]
[1758597783081,0.4702,4167.3,4166.5,1.0]
[1758597783082,0.51521548,4167.4,4167.1,1.0]
[1758597783319,0.13399886,4167.3,4167.1,1.0]
[1758597784132,2.53352376,4167.5,4167.1,1.0]
[1758597784294,0.37459886,4167.4,4167.1,1.0]
[1758597785010,0.7108,4167.3,4167.1,1.0]
[1758597785324,0.1192,4167.1,4166.7,1.0]
[1758597785482,0.1192,4166.7,4166.5,1.0]
[1758597785682,0.1192,4166.7,4166.0,0.004]
[1758597785925,0.1192,4166.7,4166.6,1.0]
[1758597788754,0.1192,4166.7,4166.0,0.004]
[1758597788755,0.3598,4166.7,4166.0,0.004]
[1758597788972,0.7108,4166.7,4166.5,1.0]
[1758597789276,0.2406,4166.7,4166.5,1.0]
[1758597789431,0.12,4166.5,4166.4,1.0]
[1758597789646,2.39995084,4166.8,4166.4,1.0]
[1758597789855,2.64045085,4167.0,4166.9,1.0]
[1758597790056,1.2131341,4167.0,4166.9,1.0]
[1758597790257,3.74700103,4167.0,4166.9,1.0]
[1758597790593,0.1192,4166.9,4166.6,1.0]
[1758597790757,0.1192,4166.9,4166.0,0.004]
[1758597790758,0.12,4166.3,4166.0,0.004]
[1758597791148,0.7108,4166.2,4166.0,0.004]
[1758597791351,3.77498047,4166.1,4166.0,0.004]
[1758597791572,2.60032047,4166.1,4166.0,0.004]
[1758597791773,4.48578047,4166.1,4166.0,0.004]
[1758597791986,5.00064825,4166.1,4166.0,0.004]
[1758597792284,1.6152578,4166.1,4166.0,0.004]
[1758597792472,11.274,4166.3,4166.0,0.004]
[1758597792473,7.06,4166.3,4166.0,0.004]
[1758597792673,7.06,4166.3,4166.2,1.0]
[1758597792878,7.19410174,4166.3,4166.2,1.0]
[1758597793193,0.13410174,4166.3,4166.2,1.0]
[1758597793348,0.35767788,4166.4,4166.2,1.0]
[1758597793548,3.11101121,4166.3,4166.0,0.004]
[1758597793751,2.75796863,4166.2,4166.0,0.004]
[1758597793987,2.53442818,4166.1,4166.0,0.004]
[1758597794192,0.77271767,4166.4,4166.0,0.004]
[1758597794362,0.13415714,4166.3,4166.2,1.0]
[1758597794562,4.214,4166.6,4166.2,1.0]
[1758597794757,0.13415714,4166.5,4166.2,1.0]
[1758597795154,0.87301675,4166.5,4166.2,1.0]
[1758597795394,0.13415714,4166.4,4166.2,1.0]
[1758597795891,0.35783633,4166.4,4166.2,1.0]
[1758597796185,0.13415714,4166.3,4166.2,1.0]
[1758597796388,0.35783633,4166.4,4166.2,1.0]
[1758597796588,0.35794458,4166.5,4166.2,1.0]
[1758597796762,0.13426539,4166.4,4166.2,1.0]
[1758597797177,0.13426539,4166.3,4166.2,1.0]
[1758597798383,0.64944377,4166.3,4166.2,1.0]
[1758597798582,0.35794458,4166.3,4166.2,1.0]
[1758597798903,0.13426539,4166.3,4166.2,1.0]
[1758597799418,1.89394528,4166.3,4166.2,1.0]
[1758597799705,2.40026883,4166.2,4166.0,0.004]
[1758597799903,0.87312296,4166.1,4166.0,0.004]
[1758597800602,0.87312296,4166.1,4166.0,1.004]
[1758597800936,0.35794458,4166.1,4166.0,3.64238406]
[1758597801067,0.35794458,4166.1,4166.0,4.08338406]
[1758597801281,0.35794458,4166.1,4166.0,1.683]
[1758597801472,0.35794458,4166.1,4166.0,1.242]
[1758597801909,0.22367919,4166.1,4166.0,4.1073879]
[1758597802076,0.86141162,4167.1,4166.0,4.1073879]
[1758597802077,0.51517838,4166.7,4166.6,1.0]
[1758597802401,0.35822233,4166.7,4166.6,1.0]
[1758597802602,0.12,4166.6,4166.0,2.40436912]
[1758597802770,0.87340071,4166.5,4166.1,1.0]
[1758597802971,0.12,4166.2,4166.1,1.0]
[1758597803191,0.47822233,4166.2,4166.1,1.0]
[1758597803395,0.99340071,4166.2,4166.1,1.0]
[1758597803591,0.47822233,4166.2,4166.1,1.0]
[1758597804307,0.99340071,4166.2,4166.1,1.0]
[1758597804490,2.40032644,4166.1,4166.0,0.004]
[1758597804729,3.50555632,4166.1,4166.0,0.004]
[1758597805142,3.96725632,4166.1,4166.0,0.004]
[1758597805534,3.91862786,4166.1,4166.0,0.004]
[1758597805743,3.96725632,4166.1,4166.0,0.004]
[1758597805907,6.43996226,4166.1,4166.0,0.004]
[1758597806647,5.14824008,4166.1,4166.0,0.004]
[1758597808539,9.35924008,4166.1,4166.0,0.004]
[1758597809533,11.43524008,4166.1,4166.0,0.004]
[1758597809759,5.14824008,4166.1,4166.0,0.004]
[1758597810059,3.34340819,4166.1,4166.0,0.004]
[1758597810217,5.08442988,4166.1,4166.0,0.004]
[1758597810553,0.87342988,4166.1,4166.0,3.08338406]
[1758597810952,0.3582515,4166.1,4166.0,3.08338406]
[1758597811516,0.3582515,4166.1,4166.0,0.683]
[1758597811721,0.87405914,4166.1,4166.0,0.683]
[1758597812139,0.87405914,4166.1,4166.0,3.08338406]
[1758597812459,0.3582515,4166.1,4166.0,3.1073879]
[1758597812625,0.22390719,4166.1,4166.0,3.08338406]
[1758597812826,0.51584296,4166.3,4166.2,2.40026883]
[1758597813121,0.87410718,4166.3,4166.2,3.07926883]
[1758597813328,0.87410718,4166.3,4166.2,4.07926883]
[1758597813523,0.87410718,4166.3,4166.2,1.679]
[1758597813848,0.87410718,4166.3,4166.2,1.0]
[1758597814351,0.87410718,4166.3,4166.2,4.07926883]
[1758597815161,0.87410718,4166.3,4166.2,1.0]
[1758597815666,0.87410718,4166.3,4166.2,1.238]
[1758597816180,0.87410718,4166.3,4166.0,0.004]
[1758597816352,0.99410718,4166.2,4166.1,1.0]
[1758597816555,0.87410718,4166.2,4166.0,1.004]
[1758597816760,0.87410718,4166.1,4166.0,1.683]
[1758597817282,0.87410718,4166.1,4166.0,1.004]
[1758597817884,8.54210794,4166.1,4166.0,1.004]
[1758597818101,5.49718528,4166.1,4166.0,1.004]
[1758597818265,5.49767226,4166.1,4166.0,1.004]
[1758597818453,8.54342716,4166.1,4166.0,1.004]
[1758597818655,1.93510072,4166.1,4166.0,1.004]
[1758597818890,0.87459416,4166.1,4166.0,4.08338406]
[1758597819092,0.64542846,4167.3,4166.6,1.0]
[1758597819260,4.208,4167.4,4166.6,1.0]
[1758597819261,0.87496831,4167.2,4167.1,1.0]
[1758597819994,1.52039677,4167.2,4167.1,1.0]
[1758597820169,2.72028775,4167.2,4167.1,1.0]
[1758597820374,3.18198775,4167.2,4166.7,1.0]
[1758597820569,0.87496831,4167.1,4166.2,0.441]
[1758597820773,2.30701944,4167.2,4166.0,2.64238136]
[1758597820774,8.36000723,4167.0,4166.0,2.64238136]
[1758597820960,1.52039677,4166.9,4166.4,1.0]
[1758597821163,2.39999661,4166.7,4166.6,1.0]
[1758597821474,4.15219338,4166.7,4166.6,1.0]
[1758597821804,3.50676492,4166.7,4166.6,1.0]
[1758597821963,3.92039338,4166.7,4166.6,1.0]
[1758597822158,3.27496492,4166.7,4166.6,1.0]
[1758597822487,5.08196831,4166.7,4166.6,1.0]
[1758597823473,7.48194911,4166.7,4166.6,1.0]
[1758597823670,0.87496831,4166.7,4166.6,1.0]
[1758597823999,5.08196831,4166.7,4166.6,1.0]
[1758597824298,8.37746316,4166.7,4166.6,1.0]
[1758597824883,9.07096316,4166.7,4166.0,0.004]
[1758597825089,2.400096,4166.5,4166.0,0.004]
[1758597825300,5.08096831,4166.4,4166.0,0.004]
[1758597825497,0.87496831,4166.3,4166.0,0.004]
[1758597825803,0.59601968,4166.8,4166.7,1.0]
[1758597825963,0.87498502,4166.8,4166.7,1.2312]
[1758597826297,0.35859352,4166.8,4166.7,1.6843]
[1758597827383,0.35859352,4166.8,4166.7,4.0842808]
[1758597827579,0.35859352,4166.8,4166.7,1.0]
[1758597828280,0.35857864,4166.8,4166.7,1.0]
[1758597828882,0.87494514,4166.8,4166.7,1.0]
[1758597829204,0.87490442,4166.8,4166.7,1.0]
[1758597829373,0.35851292,4166.8,4166.7,1.0]
[1758597829900,0.87490442,4166.8,4166.7,1.0]
[1758597830420,2.08129486,4166.8,4166.0,0.004]
[1758597830565,0.12,4166.2,4166.0,2.40436667]
[1758597830769,0.22405523,4166.1,4166.0,0.004]
[1758597831005,0.22405523,4166.1,4166.0,0.4571]
[1758597831416,0.22405523,4166.1,4166.0,2.40438406]
[1758597831572,0.22405523,4166.1,4166.0,2.63558406]
[1758597831774,0.22405523,4166.1,4166.0,4.08868406]
[1758597832206,0.12,4166.2,4166.1,2.40032644]
[1758597832410,7.18,4166.6,4166.5,2.400096]
[1758597832593,7.53848831,4166.6,4166.5,0.6843]
[1758597833105,7.53848831,4166.6,4166.5,3.084396]
[1758597833304,7.53846829,4166.6,4166.5,1.6843]
[1758597833624,7.53846829,4166.6,4166.5,1.0]
[1758597834173,7.40404267,4166.6,4166.5,1.0]
[1758597834508,7.40404267,4166.6,4166.5,3.400096]
[1758597834809,7.40404267,4166.6,4166.5,1.6843]
[1758597835009,7.53846421,4166.6,4166.5,1.2312]
[1758597835892,7.53846421,4166.6,4166.5,3.631296]
[1758597836315,7.53846421,4166.6,4166.5,4.084396]
[1758597836603,7.53846421,4166.6,4166.5,1.6843]
[1758597836810,7.53846421,4166.6,4166.5,1.0]
[1758597837171,7.53846421,4166.6,4166.5,3.631296]
[1758597837677,7.53846421,4166.6,4166.5,4.084396]
[1758597838815,0.22404267,4166.6,4166.5,4.084396]
[1758597840174,0.35878519,4166.6,4166.5,1.0]
[1758597840375,0.87598559,4166.6,4166.5,1.0]
[1758597840611,1.57438559,4166.6,4166.0,2.40437539]
[1758597840770,0.12,4166.4,4166.0,0.004]
[1758597840975,0.87615222,4166.3,4166.0,0.004]
[1758597841299,0.35878519,4166.2,4166.0,0.2352]
[1758597841501,0.35878519,4166.1,4166.0,0.2352]
[1758597841697,0.35878519,4166.1,4166.0,0.004]
[1758597841870,0.87612568,4166.1,4166.0,0.004]
[1758597842312,1.12092568,4166.1,4166.0,0.004]
[1758597842516,0.87612568,4166.1,4166.0,1.004]
[1758597843215,0.87612568,4166.1,4166.0,3.40438406]
[1758597843729,0.87612568,4166.1,4166.0,1.004]
[1758597844018,0.87612568,4166.1,4166.0,1.2352]
[1758597844585,0.87612568,4166.1,4166.0,1.6883]
[1758597845422,7.93612568,4166.1,4166.0,1.004]
[1758597846195,7.93612568,4166.1,4166.0,3.63558406]
[1758597846396,7.93590534,4166.1,4166.0,3.63558406]
[1758597846725,7.41878519,4166.1,4166.0,4.2326879]
[1758597846891,7.28404267,4166.1,4166.0,4.2326879]
[1758597847094,7.28444656,4166.1,4166.0,4.2326879]
[1758597847435,0.22444656,4166.1,4166.0,4.1126879]
[1758597847588,0.22444656,4166.1,4166.0,4.20868406]
[1758597847915,0.51709618,4166.9,4166.8,1.0]
[1758597848099,0.51709618,4166.9,4166.8,3.8530232]
[1758597848601,0.51709618,4166.9,4166.8,4.0842232]
[1758597849117,0.51709618,4166.9,4166.8,3.6311232]
[1758597849319,0.51709618,4166.9,4166.8,3.3999232]
[1758597849518,0.65177815,4166.9,4166.8,3.3999232]
[1758597850396,0.51709618,4166.9,4166.8,3.3999232]
[1758597850725,0.7415981,4166.9,4166.8,1.0]
[1758597851040,0.87628354,4166.9,4166.8,1.0]
[1758597851391,0.74158828,4166.9,4166.8,1.0]
[1758597851591,0.51709618,4166.9,4166.8,1.0]
[1758597851832,0.87627663,4166.9,4166.8,1.0]
[1758597852135,5.92632909,4166.9,4166.8,1.0]
[1758597852494,5.92632909,4166.9,4166.1,4.198]
[1758597852693,5.05005246,4166.9,4166.8,1.0]
[1758597852895,5.92641432,4166.9,4166.8,1.0]
[1758597854047,5.47281432,4166.9,4166.8,1.0]
[1758597854541,5.22701432,4166.9,4166.8,1.0]
[1758597854706,5.47181432,4166.9,4166.8,1.0]
[1758597855138,5.47186156,4166.9,4166.8,1.0]
[1758597855344,5.0744091,4166.9,4166.8,1.7029]
[1758597855650,0.8764091,4166.9,4166.8,4.1028232]
[1758597855948,0.64542846,4167.8,4167.7,1.0]
[1758597856242,0.87682324,4167.8,4167.7,1.0]
[1758597856650,0.87682324,4167.8,4167.7,3.63290494]
[1758597856944,0.87682324,4167.8,4167.7,1.2335]
[1758597857112,0.87682324,4167.8,4167.7,1.0]
[1758597857314,0.13475698,4167.8,4167.7,1.0]
[1758597857644,0.87658762,4167.8,4167.7,1.0]
[1758597858448,1.34699958,4167.8,4167.7,1.0]
[1758597858631,1.62387087,4167.8,4167.7,1.0]
[1758597858835,0.87658762,4167.8,4167.7,1.0]
[1758597859542,0.35911633,4167.8,4167.7,1.0]
[1758597860127,0.22435935,4167.8,4167.7,4.10230494]
[1758597860313,0.22435935,4167.8,4167.7,4.12629898]
[1758597861017,2.39978093,4168.8,4168.5,1.0]
[1758597861252,0.35852113,4168.7,4168.5,1.0]
[1758597861458,0.22406967,4168.6,4168.5,1.0]
[1758597861949,0.46466967,4168.6,4168.5,1.0]
[1758597862150,3.43204455,4168.6,4168.5,1.0]
[1758597862398,1.03315764,4168.6,4168.5,1.0]
[1758597862627,0.59905764,4168.6,4168.5,1.0]
[1758597862758,0.22406967,4168.6,4168.5,1.0]
[1758597864566,2.3989621,4168.5,4167.8,0.7029]
[1758597864770,0.22406967,4168.4,4168.3,1.0]
[1758597865334,0.22406967,4168.5,4168.3,1.0]
[1758597865818,0.22406967,4168.4,4168.3,1.0]
[1758597866112,0.1192,4168.4,4168.3,1.0]
[1758597867111,0.34326967,4168.4,4168.3,1.0]
[1758597867415,0.58386967,4168.4,4167.8,0.2335]
[1758597867618,4.192,4168.3,4167.7,0.1192]
[1758597867821,4.192,4168.3,4167.6,0.004]
[1758597867822,0.1192,4168.0,4167.6,0.004]
[1758597868388,0.1192,4168.0,4167.6,2.63695155]
[1758597868690,0.1192,4168.0,4167.8,2.39934191]
[1758597868890,0.1192,4168.0,4167.7,3.10230115]
[1758597869217,0.1192,4168.0,4167.7,0.7029]
[1758597869885,0.1192,4168.0,4167.9,1.0]
[1758597870899,0.1192,4168.0,4167.7,0.7029]
[1758597871098,0.1192,4168.0,4167.6,0.004]
[1758597871720,0.1192,4168.0,4167.7,2.39936142]
[1758597872025,0.1192,4168.0,4167.6,0.004]
[1758597872234,2.39939437,4167.8,4167.6,0.004]
[1758597872445,0.22367682,4167.7,4167.6,0.004]
[1758597872626,0.46427682,4167.7,4167.6,0.004]
[1758597872954,0.22367682,4167.9,4167.6,0.004]
[1758597873111,0.22367682,4167.8,4167.6,0.004]
[1758597873300,0.22367682,4167.7,4167.6,0.004]
[1758597873913,0.22367682,4167.7,4167.6,1.004]
[1758597874332,0.22367682,4167.7,4167.6,0.004]
[1758597874552,0.22367682,4167.8,4167.6,1.2375]
[1758597874746,2.39901117,4168.4,4167.7,0.7029]
[1758597875043,3.32574923,4168.3,4167.7,0.7029]
[1758597875253,3.32574923,4168.3,4167.6,3.40346252]
[1758597875254,4.54828338,4168.2,4168.1,1.0]
[1758597875548,7.46337854,4168.2,4168.1,1.0]
[1758597875752,7.70397854,4168.2,4168.1,1.0]
[1758597875929,3.51397854,4168.2,4168.1,1.0]
[1758597876230,7.87954298,4168.2,4168.1,1.0]
[1758597876420,8.15492102,4168.2,4168.1,1.0]
[1758597876832,8.39552102,4168.2,4168.1,1.0]
[1758597877050,6.4305039,4168.2,4167.6,0.004]
[1758597877252,1.81451926,4168.1,4167.6,0.004]
[1758597877412,0.35874989,4168.0,4167.6,0.004]
[1758597877619,2.75805322,4167.9,4167.6,0.004]
[1758597877815,0.35874989,4167.8,4167.6,0.004]
[1758597878133,0.87472793,4167.7,4167.6,0.004]
[1758597878336,4.28207566,4167.7,4167.6,0.004]
[1758597878650,4.52267566,4167.7,4167.6,0.004]
[1758597878862,4.52267566,4167.7,4166.2,0.4694]
[1758597878863,3.84797566,4167.7,4164.5,0.49424659]
[1758597878996,3.84797566,4167.7,4165.3,0.72148944]
[1758597878997,0.64546123,4166.4,4165.3,0.72148944]
[1758597879202,0.87472793,4166.3,4165.3,2.4007836]
[1758597879415,5.21474685,4166.2,4165.4,2.40067908]
[1758597879705,5.06272793,4166.1,4165.5,0.02800672]
[1758597879954,4.188,4166.6,4165.9,2.40443192]
[1758597880133,0.35834641,4166.5,4165.9,2.40443]
[1758597880319,0.22396651,4166.4,4165.9,2.40443]
[1758597880513,0.22396651,4166.3,4166.1,0.2335]
[1758597880709,0.22396651,4166.2,4166.1,0.2335]
[1758597880938,0.22396651,4166.2,4166.0,0.4734]
[1758597881138,0.22396651,4166.1,4166.0,0.004]
[1758597882226,0.98055876,4166.1,4166.0,0.004]
[1758597882427,0.46456651,4166.1,4166.0,0.004]
[1758597884061,8.87978659,4166.1,4166.0,0.004]
[1758597884263,8.74551054,4166.1,4166.0,0.004]
[1758597884467,11.57993698,4166.1,4166.0,0.004]
[1758597884648,11.71416592,4166.1,4166.0,0.004]
[1758597885234,11.57993698,4166.1,4166.0,0.004]
[1758597885541,9.17961054,4166.1,4166.0,0.004]
[1758597885738,7.98925171,4166.1,4166.0,0.004]
[1758597886049,14.57657815,4166.1,4166.0,0.004]
[1758597886359,15.75501859,4166.1,4166.0,0.004]
[1758597886556,12.69139215,4166.1,4166.0,0.004]
[1758597886742,12.17625171,4166.1,4166.0,0.004]
[1758597887149,14.57657815,4166.1,4166.0,0.004]
[1758597887640,15.32065637,4166.1,4166.0,0.004]
[1758597888156,15.75455637,4166.1,4166.0,0.004]
[1758597888734,15.7543421,4166.1,4166.0,0.004]
[1758597888932,15.23987815,4166.1,4166.0,0.004]
[1758597889164,15.75435158,4166.1,4166.0,0.004]
[1758597889474,15.23987815,4166.1,4166.0,0.004]